[Event "Titled Tuesday Blitz January 10 Late 2023"]
[White "Rodrigues, Leonardo De Miranda"]
[Black "Danielyan, Vahe"]
[WhiteFideId "2108658"]
[BlackFideId "13304828"]
[WhiteElo "2112"]
[BlackElo "2346"]
[Result "0-1"]
[Round "05"]
[TimeControl "180+2"]
[Date "2023.01.10"]
[WhiteClock "0:00:42"]
[BlackClock "0:01:42"]

1. e4 {[%clk 0:00:00]}  Nf6 {[%clk 0:00:00]} 2. Nc3 {[%clk 0:02:59]}  d6 {[%clk 0:02:59]} 3. d4 {[%clk 0:02:57]}  e5 {[%clk 0:02:59]} 4. dxe5 {[%clk 0:02:56]}  dxe5 {[%clk 0:02:59]} 5. Qxd8+ {[%clk 0:02:56]}  Kxd8 {[%clk 0:03:00]} 6. Bg5 {[%clk 0:02:56]}  Be6 {[%clk 0:03:01]} 7. O-O-O+ {[%clk 0:02:56]}  Nd7 {[%clk 0:03:00]} 8. Nf3 {[%clk 0:02:56]}  Bd6 {[%clk 0:02:59]} 9. Nb5 {[%clk 0:02:56]}  Ke7 {[%clk 0:02:34]} 10. h3 {[%clk 0:02:54]}  a6 {[%clk 0:02:32]} 11. Nc3 {[%clk 0:02:48]}  h6 {[%clk 0:02:28]} 12. Bh4 {[%clk 0:02:46]}  g5 {[%clk 0:02:22]} 13. Bg3 {[%clk 0:02:44]}  Nh5 {[%clk 0:02:21]} 14. Bh2 {[%clk 0:02:44]}  Rhd8 {[%clk 0:02:20]} 15. Be2 {[%clk 0:02:41]}  Nf4 {[%clk 0:02:17]} 16. Bxf4 {[%clk 0:02:38]}  gxf4 {[%clk 0:02:16]} 17. Nh4 {[%clk 0:02:36]}  Nf6 {[%clk 0:02:17]} 18. Nd5+ {[%clk 0:02:33]}  Nxd5 {[%clk 0:02:16]} 19. exd5 {[%clk 0:02:14]}  Bd7 {[%clk 0:02:15]} 20. Bg4 {[%clk 0:02:15]}  Rg8 {[%clk 0:02:15]} 21. Bf5 {[%clk 0:02:13]}  Rg5 {[%clk 0:02:14]} 22. Bxd7 {[%clk 0:01:57]}  Kxd7 {[%clk 0:02:10]} 23. Rhe1 {[%clk 0:01:52]}  f5 {[%clk 0:02:11]} 24. a3 {[%clk 0:01:49]}  e4 {[%clk 0:02:06]} 25. c4 {[%clk 0:01:41]}  Rag8 {[%clk 0:02:06]} 26. b4 {[%clk 0:01:26]}  Rh5 {[%clk 0:01:56]} 27. c5 {[%clk 0:01:20]}  Be5 {[%clk 0:01:55]} 28. Nf3 {[%clk 0:01:19]}  exf3 {[%clk 0:01:52]} 29. Rxe5 {[%clk 0:01:11]}  fxg2 {[%clk 0:01:42]} 30. Rg1 {[%clk 0:01:10]}  Rxh3 {[%clk 0:01:43]} 31. Kd2 {[%clk 0:01:08]}  Rh1 {[%clk 0:01:43]} 32. Ree1 {[%clk 0:00:59]}  Rxg1 {[%clk 0:01:42]} 33. Rxg1 {[%clk 0:00:58]}  h5 {[%clk 0:01:43]} 34. Ke2 {[%clk 0:00:58]}  h4 {[%clk 0:01:44]} 35. Kf3 {[%clk 0:00:57]}  h3 {[%clk 0:01:43]} 36. a4 {[%clk 0:00:57]}  h2 {[%clk 0:01:43]} 37. Rxg2 {[%clk 0:00:46]}  h1=Q {[%clk 0:01:43]} 38. Kxf4 {[%clk 0:00:44]}  Qxg2 {[%clk 0:01:42]} 39. c6+ {[%clk 0:00:45]}  Kd6 {[%clk 0:01:42]} 40. f3 {[%clk 0:00:42]}  Qg5# {[%clk 0:01:42]} 0-1


[Site "https://www.chess.com"]

[Event "Titled Tuesday Blitz January 10 Late 2023"]
[White "Abrahamyan, Tatev"]
[Black "Miszler, Levente"]
[WhiteFideId "13301918"]
[BlackFideId "763276"]
[WhiteElo "2294"]
[BlackElo "2271"]
[Result "1-0"]
[Round "05"]
[TimeControl "180+2"]
[Date "2023.01.10"]
[WhiteClock "0:00:19"]
[BlackClock "0:00:08"]

1. e4 {[%clk 0:00:00]}  e6 {[%clk 0:00:00]} 2. d4 {[%clk 0:02:52]}  d5 {[%clk 0:02:59]} 3. Nc3 {[%clk 0:02:50]}  dxe4 {[%clk 0:02:59]} 4. Nxe4 {[%clk 0:02:48]}  Nf6 {[%clk 0:02:51]} 5. Nxf6+ {[%clk 0:02:48]}  gxf6 {[%clk 0:02:52]} 6. Ne2 {[%clk 0:02:48]}  f5 {[%clk 0:02:51]} 7. Ng3 {[%clk 0:02:44]}  c5 {[%clk 0:02:51]} 8. Be3 {[%clk 0:02:42]}  Bg7 {[%clk 0:02:48]} 9. c3 {[%clk 0:02:38]}  cxd4 {[%clk 0:02:27]} 10. cxd4 {[%clk 0:02:14]}  Nc6 {[%clk 0:02:26]} 11. Nh5 {[%clk 0:02:09]}  Bxd4 {[%clk 0:02:16]} 12. Bxd4 {[%clk 0:01:49]}  Qxd4 {[%clk 0:02:09]} 13. Qxd4 {[%clk 0:01:48]}  Nxd4 {[%clk 0:02:07]} 14. O-O-O {[%clk 0:01:48]}  Nc6 {[%clk 0:02:08]} 15. Bb5 {[%clk 0:01:49]}  Ke7 {[%clk 0:02:05]} 16. Rd2 {[%clk 0:01:47]}  Bd7 {[%clk 0:02:02]} 17. Re1 {[%clk 0:01:29]}  Rad8 {[%clk 0:02:00]} 18. Ng3 {[%clk 0:01:25]}  Kf6 {[%clk 0:01:58]} 19. Red1 {[%clk 0:01:22]}  Bc8 {[%clk 0:01:24]} 20. Bxc6 {[%clk 0:01:11]}  Rxd2 {[%clk 0:01:24]} 21. Rxd2 {[%clk 0:01:06]}  bxc6 {[%clk 0:01:23]} 22. f4 {[%clk 0:01:04]}  Rg8 {[%clk 0:01:24]} 23. Nf1 {[%clk 0:01:03]}  c5 {[%clk 0:01:18]} 24. Ne3 {[%clk 0:00:59]}  Bb7 {[%clk 0:01:15]} 25. g3 {[%clk 0:00:56]}  h5 {[%clk 0:01:15]} 26. Rd7 {[%clk 0:00:56]}  Be4 {[%clk 0:01:14]} 27. Nc4 {[%clk 0:00:55]}  Rg7 {[%clk 0:01:11]} 28. Ne5 {[%clk 0:00:55]}  h4 {[%clk 0:00:38]} 29. gxh4 {[%clk 0:00:53]}  a6 {[%clk 0:00:38]} 30. Kd2 {[%clk 0:00:48]}  Bd5 {[%clk 0:00:29]} 31. a3 {[%clk 0:00:43]}  Bb3 {[%clk 0:00:24]} 32. Kc3 {[%clk 0:00:36]}  Ba4 {[%clk 0:00:17]} 33. Rc7 {[%clk 0:00:35]}  Bb5 {[%clk 0:00:14]} 34. h5 {[%clk 0:00:31]}  Be2 {[%clk 0:00:15]} 35. h6 {[%clk 0:00:31]}  Rh7 {[%clk 0:00:13]} 36. Rxc5 {[%clk 0:00:30]}  Rxh6 {[%clk 0:00:14]} 37. Rc7 {[%clk 0:00:21]}  Bh5 {[%clk 0:00:13]} 38. Ra7 {[%clk 0:00:22]}  Bg6 {[%clk 0:00:11]} 39. Rxa6 {[%clk 0:00:21]}  Rh4 {[%clk 0:00:10]} 40. Nd3 {[%clk 0:00:20]}  Rxh2 {[%clk 0:00:10]} 41. b4 {[%clk 0:00:20]}  Bh5 {[%clk 0:00:10]} 42. Ra7 {[%clk 0:00:20]}  Be2 {[%clk 0:00:09]} 43. Ne5 {[%clk 0:00:19]}  Bh5 {[%clk 0:00:08]} 44. b5 {[%clk 0:00:19]} 1-0


[Site "https://www.chess.com"]

[Event "Titled Tuesday Blitz January 10 Late 2023"]
[White "Jakubowski, Krzysztof"]
[Black "Gutkin, Ilya"]
[WhiteFideId "1112848"]
[BlackFideId "16203470"]
[WhiteElo "2486"]
[BlackElo "2273"]
[Result "1-0"]
[Round "05"]
[TimeControl "180+2"]
[Date "2023.01.10"]
[WhiteClock "0:01:54"]
[BlackClock "0:00:17"]

1. c4 {[%clk 0:00:00]}  c5 {[%clk 0:00:00]} 2. Nf3 {[%clk 0:03:00]}  g6 {[%clk 0:02:59]} 3. d4 {[%clk 0:02:59]}  cxd4 {[%clk 0:02:58]} 4. Nxd4 {[%clk 0:02:59]}  Nc6 {[%clk 0:02:59]} 5. e4 {[%clk 0:02:59]}  Bg7 {[%clk 0:02:58]} 6. Be3 {[%clk 0:02:59]}  Nf6 {[%clk 0:02:58]} 7. Nc3 {[%clk 0:02:59]}  O-O {[%clk 0:02:58]} 8. Be2 {[%clk 0:02:58]}  Nxd4 {[%clk 0:02:58]} 9. Bxd4 {[%clk 0:02:58]}  d6 {[%clk 0:02:56]} 10. O-O {[%clk 0:02:58]}  Bd7 {[%clk 0:02:56]} 11. Kh1 {[%clk 0:02:57]}  Bc6 {[%clk 0:02:57]} 12. f3 {[%clk 0:02:53]}  a5 {[%clk 0:02:55]} 13. Qd2 {[%clk 0:02:52]}  a4 {[%clk 0:02:54]} 14. Rab1 {[%clk 0:02:52]}  Nd7 {[%clk 0:02:50]} 15. Be3 {[%clk 0:02:50]}  Nc5 {[%clk 0:02:48]} 16. Rfc1 {[%clk 0:02:50]}  e6 {[%clk 0:02:37]} 17. Bf1 {[%clk 0:02:47]}  Be5 {[%clk 0:02:26]} 18. Ne2 {[%clk 0:02:36]}  f5 {[%clk 0:02:21]} 19. exf5 {[%clk 0:02:31]}  Rxf5 {[%clk 0:02:15]} 20. Bg1 {[%clk 0:02:29]}  Qh4 {[%clk 0:01:20]} 21. Qe1 {[%clk 0:02:28]}  Qg5 {[%clk 0:01:10]} 22. Ng3 {[%clk 0:02:23]}  Nd3 {[%clk 0:01:00]} 23. Bxd3 {[%clk 0:02:17]}  Rxf3 {[%clk 0:00:54]} 24. Be4 {[%clk 0:02:16]}  Rxg3 {[%clk 0:00:53]} 25. Bxc6 {[%clk 0:02:10]}  bxc6 {[%clk 0:00:32]} 26. hxg3 {[%clk 0:02:08]}  Bxg3 {[%clk 0:00:28]} 27. Qxe6+ {[%clk 0:02:05]}  Kg7 {[%clk 0:00:29]} 28. Bd4+ {[%clk 0:02:05]}  Kh6 {[%clk 0:00:23]} 29. Qh3+ {[%clk 0:02:00]}  Bh4 {[%clk 0:00:17]} 30. Be3 {[%clk 0:01:54]} 1-0


[Site "https://www.chess.com"]

[Event "Titled Tuesday Blitz January 10 Late 2023"]
[White "Melikhov, Evgeny V."]
[Black "Defend, Balint"]
[WhiteFideId "4122046"]
[BlackFideId "17004853"]
[WhiteElo "2269"]
[BlackElo "1673"]
[Result "0-1"]
[Round "05"]
[TimeControl "180+2"]
[Date "2023.01.10"]
[WhiteClock "0:00:06"]
[BlackClock "0:00:54"]

1. d4 {[%clk 0:00:00]}  Nf6 {[%clk 0:00:00]} 2. c4 {[%clk 0:03:00]}  e6 {[%clk 0:03:00]} 3. Nc3 {[%clk 0:03:00]}  Bb4 {[%clk 0:03:00]} 4. Qc2 {[%clk 0:03:00]}  d6 {[%clk 0:03:01]} 5. e4 {[%clk 0:03:00]}  Bxc3+ {[%clk 0:03:00]} 6. bxc3 {[%clk 0:02:57]}  e5 {[%clk 0:02:58]} 7. Nf3 {[%clk 0:02:56]}  h6 {[%clk 0:02:59]} 8. dxe5 {[%clk 0:02:51]}  dxe5 {[%clk 0:02:58]} 9. Nxe5 {[%clk 0:02:43]}  O-O {[%clk 0:02:59]} 10. Bd3 {[%clk 0:02:40]}  Re8 {[%clk 0:02:59]} 11. Nf3 {[%clk 0:02:31]}  Bf5 {[%clk 0:02:55]} 12. O-O {[%clk 0:02:28]}  Bxe4 {[%clk 0:02:40]} 13. Bxe4 {[%clk 0:02:24]}  Nxe4 {[%clk 0:02:38]} 14. Re1 {[%clk 0:02:23]}  Nf6 {[%clk 0:02:39]} 15. Ba3 {[%clk 0:02:17]}  Nc6 {[%clk 0:02:37]} 16. Rxe8+ {[%clk 0:02:10]}  Qxe8 {[%clk 0:02:35]} 17. Re1 {[%clk 0:02:09]}  Qd7 {[%clk 0:02:35]} 18. Bc5 {[%clk 0:02:08]}  Re8 {[%clk 0:02:35]} 19. Rxe8+ {[%clk 0:02:00]}  Qxe8 {[%clk 0:02:33]} 20. Bd4 {[%clk 0:01:55]}  Qe4 {[%clk 0:02:34]} 21. Qxe4 {[%clk 0:01:54]}  Nxe4 {[%clk 0:02:29]} 22. Kf1 {[%clk 0:01:47]}  b6 {[%clk 0:02:28]} 23. Ke2 {[%clk 0:01:32]}  Na5 {[%clk 0:02:22]} 24. Kd3 {[%clk 0:01:30]}  f5 {[%clk 0:02:12]} 25. Ne5 {[%clk 0:01:26]}  c5 {[%clk 0:02:12]} 26. Be3 {[%clk 0:01:22]}  Kf8 {[%clk 0:02:10]} 27. f3 {[%clk 0:01:18]}  Nd6 {[%clk 0:02:01]} 28. h4 {[%clk 0:01:13]}  Ke7 {[%clk 0:01:54]} 29. h5 {[%clk 0:00:58]}  Ke6 {[%clk 0:01:53]} 30. Bf4 {[%clk 0:00:57]}  Ne8 {[%clk 0:01:51]} 31. Ng6 {[%clk 0:00:54]}  Nf6 {[%clk 0:01:40]} 32. Bb8 {[%clk 0:00:41]}  Nc6 {[%clk 0:01:37]} 33. Nf4+ {[%clk 0:00:40]}  Kd7 {[%clk 0:01:37]} 34. Bc7 {[%clk 0:00:37]}  Kxc7 {[%clk 0:01:32]} 35. Ne6+ {[%clk 0:00:23]}  Kd6 {[%clk 0:01:32]} 36. Nxg7 {[%clk 0:00:23]}  Ke5 {[%clk 0:01:32]} 37. g3 {[%clk 0:00:24]}  f4 {[%clk 0:01:19]} 38. gxf4+ {[%clk 0:00:15]}  Kxf4 {[%clk 0:01:19]} 39. Ke2 {[%clk 0:00:14]}  Ke5 {[%clk 0:01:20]} 40. Ke3 {[%clk 0:00:11]}  Ng8 {[%clk 0:01:18]} 41. Ne8 {[%clk 0:00:10]}  Nge7 {[%clk 0:01:01]} 42. f4+ {[%clk 0:00:08]}  Ke6 {[%clk 0:00:57]} 43. Nc7+ {[%clk 0:00:07]}  Kf6 {[%clk 0:00:57]} 44. Nd5+ {[%clk 0:00:06]}  Nxd5+ {[%clk 0:00:54]} 45. cxd5 {[%clk 0:00:06]}  Ne7 {[%clk 0:00:53]} 46. c4 {[%clk 0:00:06]}  Nf5+ {[%clk 0:00:54]} 47. Ke4 {[%clk 0:00:06]}  Nd6+ {[%clk 0:00:54]} 48. Kd3 {[%clk 0:00:06]}  Kf5 {[%clk 0:00:54]} 0-1


[Site "https://www.chess.com"]

[Event "Titled Tuesday Blitz January 10 Late 2023"]
[White "Gavilan Diaz, Mario"]
[Black "Gatterer, Florian"]
[WhiteFideId "2260905"]
[BlackFideId "811688"]
[WhiteElo "2271"]
[BlackElo "2170"]
[Result "1-0"]
[Round "05"]
[TimeControl "180+2"]
[Date "2023.01.10"]
[WhiteClock "0:00:10"]
[BlackClock "0:00:01"]

1. d4 {[%clk 0:00:00]}  d5 {[%clk 0:00:00]} 2. c4 {[%clk 0:02:55]}  c6 {[%clk 0:02:58]} 3. Nf3 {[%clk 0:02:55]}  Nf6 {[%clk 0:02:59]} 4. Nc3 {[%clk 0:02:55]}  dxc4 {[%clk 0:02:59]} 5. a4 {[%clk 0:02:55]}  Bf5 {[%clk 0:02:58]} 6. e3 {[%clk 0:02:55]}  e6 {[%clk 0:02:57]} 7. Bxc4 {[%clk 0:02:54]}  Bb4 {[%clk 0:02:57]} 8. O-O {[%clk 0:02:54]}  O-O {[%clk 0:02:57]} 9. Qe2 {[%clk 0:02:54]}  Nbd7 {[%clk 0:02:56]} 10. e4 {[%clk 0:02:54]}  Bg4 {[%clk 0:02:52]} 11. e5 {[%clk 0:02:54]}  Nd5 {[%clk 0:02:49]} 12. Nxd5 {[%clk 0:02:43]}  cxd5 {[%clk 0:02:48]} 13. Bd3 {[%clk 0:02:41]}  Be7 {[%clk 0:02:40]} 14. Qe3 {[%clk 0:02:41]}  Bh5 {[%clk 0:02:34]} 15. Bd2 {[%clk 0:02:38]}  Rc8 {[%clk 0:02:27]} 16. a5 {[%clk 0:02:36]}  Bg6 {[%clk 0:02:22]} 17. a6 {[%clk 0:02:34]}  b6 {[%clk 0:02:18]} 18. Rfc1 {[%clk 0:02:26]}  Nb8 {[%clk 0:02:17]} 19. Rxc8 {[%clk 0:02:24]}  Qxc8 {[%clk 0:02:08]} 20. Rc1 {[%clk 0:02:03]}  Qd7 {[%clk 0:02:07]} 21. Bf1 {[%clk 0:02:02]}  Rc8 {[%clk 0:02:07]} 22. h4 {[%clk 0:01:27]}  Rxc1 {[%clk 0:02:03]} 23. Bxc1 {[%clk 0:01:19]}  Qc8 {[%clk 0:01:52]} 24. Qc3 {[%clk 0:01:20]}  Qxc3 {[%clk 0:01:33]} 25. bxc3 {[%clk 0:01:19]}  f6 {[%clk 0:01:05]} 26. exf6 {[%clk 0:01:20]}  gxf6 {[%clk 0:01:05]} 27. Bf4 {[%clk 0:01:16]}  Nc6 {[%clk 0:01:05]} 28. Bb5 {[%clk 0:01:12]}  Be8 {[%clk 0:00:47]} 29. g4 {[%clk 0:01:12]}  Kf7 {[%clk 0:00:47]} 30. g5 {[%clk 0:00:51]}  Na5 {[%clk 0:00:40]} 31. Bd3 {[%clk 0:00:50]}  Kg7 {[%clk 0:00:11]} 32. Kh2 {[%clk 0:00:38]}  Nc4 {[%clk 0:00:07]} 33. Bxc4 {[%clk 0:00:34]}  dxc4 {[%clk 0:00:06]} 34. Bb8 {[%clk 0:00:28]}  Bb5 {[%clk 0:00:07]} 35. Bxa7 {[%clk 0:00:20]}  Bxa6 {[%clk 0:00:05]} 36. Bxb6 {[%clk 0:00:20]}  fxg5 {[%clk 0:00:05]} 37. hxg5 {[%clk 0:00:20]}  h6 {[%clk 0:00:04]} 38. gxh6+ {[%clk 0:00:20]}  Kxh6 {[%clk 0:00:05]} 39. Kg3 {[%clk 0:00:19]}  Bb7 {[%clk 0:00:05]} 40. Bc7 {[%clk 0:00:19]}  Kg6 {[%clk 0:00:04]} 41. Ne5+ {[%clk 0:00:14]}  Kf5 {[%clk 0:00:02]} 42. Nxc4 {[%clk 0:00:13]}  Ke4 {[%clk 0:00:03]} 43. Na5 {[%clk 0:00:13]}  Ba6 {[%clk 0:00:01]} 44. Nc6 {[%clk 0:00:10]} 1-0


[Site "https://www.chess.com"]

[Event "Titled Tuesday Blitz January 10 Late 2023"]
[White "Ladan, Nicholas"]
[Black "Muhammad, Shahzeb"]
[WhiteFideId "30918855"]
[BlackFideId "7804806"]
[WhiteElo "2228"]
[BlackElo "1853"]
[Result "1/2-1/2"]
[Round "05"]
[TimeControl "180+2"]
[Date "2023.01.10"]
[WhiteClock "0:00:05"]
[BlackClock "0:00:16"]

1. b4 {[%clk 0:00:00]}  e5 {[%clk 0:00:00]} 2. Bb2 {[%clk 0:03:00]}  d6 {[%clk 0:02:58]} 3. e4 {[%clk 0:03:00]}  Nf6 {[%clk 0:02:58]} 4. d3 {[%clk 0:02:57]}  g6 {[%clk 0:02:57]} 5. g3 {[%clk 0:02:57]}  Bg7 {[%clk 0:02:57]} 6. Bg2 {[%clk 0:02:56]}  O-O {[%clk 0:02:57]} 7. Ne2 {[%clk 0:02:56]}  a5 {[%clk 0:02:58]} 8. b5 {[%clk 0:02:57]}  Nbd7 {[%clk 0:02:58]} 9. a4 {[%clk 0:02:56]}  Nc5 {[%clk 0:02:56]} 10. O-O {[%clk 0:02:56]}  c6 {[%clk 0:02:56]} 11. Nd2 {[%clk 0:02:56]}  Bd7 {[%clk 0:02:57]} 12. d4 {[%clk 0:02:50]}  exd4 {[%clk 0:02:55]} 13. Nxd4 {[%clk 0:02:44]}  Re8 {[%clk 0:02:52]} 14. Re1 {[%clk 0:02:44]}  cxb5 {[%clk 0:02:46]} 15. Nxb5 {[%clk 0:02:43]}  Bxb5 {[%clk 0:02:38]} 16. axb5 {[%clk 0:02:40]}  Qb6 {[%clk 0:02:37]} 17. Qf3 {[%clk 0:02:40]}  Nfd7 {[%clk 0:02:33]} 18. Bxg7 {[%clk 0:02:35]}  Kxg7 {[%clk 0:02:17]} 19. Nc4 {[%clk 0:02:34]}  Qc7 {[%clk 0:02:17]} 20. Qc3+ {[%clk 0:02:34]}  Nf6 {[%clk 0:02:10]} 21. Rxa5 {[%clk 0:02:30]}  Nxe4 {[%clk 0:02:06]} 22. Rxe4 {[%clk 0:02:18]}  Rxe4 {[%clk 0:02:01]} 23. Bxe4 {[%clk 0:02:07]}  Rxa5 {[%clk 0:01:46]} 24. b6 {[%clk 0:02:07]}  Qc5 {[%clk 0:01:43]} 25. Qxa5 {[%clk 0:01:37]}  Nxe4 {[%clk 0:01:18]} 26. Qxc5 {[%clk 0:01:36]}  Nxc5 {[%clk 0:01:12]} 27. Nxd6 {[%clk 0:01:33]}  Nd7 {[%clk 0:01:05]} 28. Nxb7 {[%clk 0:01:31]}  Nxb6 {[%clk 0:01:04]} 29. f4 {[%clk 0:01:22]}  Kf6 {[%clk 0:01:05]} 30. Kf2 {[%clk 0:01:20]}  Kf5 {[%clk 0:01:05]} 31. Kf3 {[%clk 0:01:19]}  h5 {[%clk 0:01:04]} 32. Nd6+ {[%clk 0:01:18]}  Ke6 {[%clk 0:01:01]} 33. Ne4 {[%clk 0:01:16]}  Kd5 {[%clk 0:01:00]} 34. Ng5 {[%clk 0:01:14]}  f6 {[%clk 0:00:56]} 35. Ne4 {[%clk 0:01:12]}  Nd7 {[%clk 0:00:54]} 36. Ke3 {[%clk 0:01:11]}  Kc4 {[%clk 0:00:47]} 37. Kd2 {[%clk 0:01:08]}  Kd4 {[%clk 0:00:47]} 38. Nd6 {[%clk 0:01:00]}  g5 {[%clk 0:00:44]} 39. c3+ {[%clk 0:00:56]}  Kd5 {[%clk 0:00:41]} 40. Ne8 {[%clk 0:00:46]}  gxf4 {[%clk 0:00:40]} 41. gxf4 {[%clk 0:00:40]}  Ke4 {[%clk 0:00:38]} 42. Ng7 {[%clk 0:00:41]}  h4 {[%clk 0:00:38]} 43. Nh5 {[%clk 0:00:38]}  Kf5 {[%clk 0:00:35]} 44. Ng7+ {[%clk 0:00:32]}  Kxf4 {[%clk 0:00:28]} 45. Ke2 {[%clk 0:00:12]}  h3 {[%clk 0:00:28]} 46. Kf2 {[%clk 0:00:13]}  Ne5 {[%clk 0:00:25]} 47. Ne6+ {[%clk 0:00:13]}  Ke4 {[%clk 0:00:25]} 48. Kg3 {[%clk 0:00:12]}  f5 {[%clk 0:00:23]} 49. Kxh3 {[%clk 0:00:12]}  f4 {[%clk 0:00:21]} 50. Kg2 {[%clk 0:00:11]}  f3+ {[%clk 0:00:21]} 51. Kg3 {[%clk 0:00:11]}  Ke3 {[%clk 0:00:21]} 52. Nf4 {[%clk 0:00:10]}  f2 {[%clk 0:00:19]} 53. Ng2+ {[%clk 0:00:05]}  Ke2 {[%clk 0:00:16]} 54. Nf4+ {[%clk 0:00:05]}  Ke1 {[%clk 0:00:16]} 55. Ng2+ {[%clk 0:00:05]}  Ke2 {[%clk 0:00:16]} 56. Nf4+ {[%clk 0:00:05]}  Ke1 {[%clk 0:00:16]} 57. Ng2+ {[%clk 0:00:05]}  Ke2 {[%clk 0:00:16]} 1/2-1/2


[Site "https://www.chess.com"]

[Event "Titled Tuesday Blitz January 10 Late 2023"]
[White "Urbina Perez, Juan Antonio"]
[Black "Zampronha, Wladimir Camilo"]
[WhiteFideId "2217368"]
[BlackFideId "2103087"]
[WhiteElo "2266"]
[BlackElo "2176"]
[Result "1-0"]
[Round "05"]
[TimeControl "180+2"]
[Date "2023.01.10"]
[WhiteClock "0:00:47"]
[BlackClock "0:00:12"]

1. d4 {[%clk 0:00:00]}  Nf6 {[%clk 0:00:00]} 2. Nf3 {[%clk 0:03:00]}  e6 {[%clk 0:02:59]} 3. c4 {[%clk 0:02:59]}  d5 {[%clk 0:02:58]} 4. g3 {[%clk 0:02:59]}  Be7 {[%clk 0:02:58]} 5. Bg2 {[%clk 0:02:59]}  O-O {[%clk 0:02:58]} 6. O-O {[%clk 0:03:00]}  dxc4 {[%clk 0:02:58]} 7. Ne5 {[%clk 0:03:01]}  Nc6 {[%clk 0:02:58]} 8. Nxc6 {[%clk 0:03:01]}  bxc6 {[%clk 0:02:55]} 9. Qc2 {[%clk 0:03:02]}  Qxd4 {[%clk 0:02:56]} 10. Rd1 {[%clk 0:03:02]}  Qb6 {[%clk 0:02:06]} 11. Be3 {[%clk 0:03:00]}  Bc5 {[%clk 0:01:59]} 12. Bxc5 {[%clk 0:02:58]}  Qxc5 {[%clk 0:01:56]} 13. Na3 {[%clk 0:02:56]}  Ba6 {[%clk 0:01:57]} 14. Rac1 {[%clk 0:02:53]}  Rfd8 {[%clk 0:01:57]} 15. Re1 {[%clk 0:02:51]}  Rab8 {[%clk 0:01:55]} 16. Nb1 {[%clk 0:02:44]}  Nd5 {[%clk 0:01:52]} 17. Nc3 {[%clk 0:02:25]}  Nxc3 {[%clk 0:01:50]} 18. Qxc3 {[%clk 0:02:16]}  Qb4 {[%clk 0:01:49]} 19. Qxb4 {[%clk 0:02:17]}  Rxb4 {[%clk 0:01:35]} 20. Rc2 {[%clk 0:02:04]}  Rdb8 {[%clk 0:01:33]} 21. Rb1 {[%clk 0:01:59]}  R8b6 {[%clk 0:01:27]} 22. Kf1 {[%clk 0:01:46]}  Kf8 {[%clk 0:01:18]} 23. Ke1 {[%clk 0:01:45]}  Ke7 {[%clk 0:01:17]} 24. Kd2 {[%clk 0:01:45]}  Kd6 {[%clk 0:01:18]} 25. Kc3 {[%clk 0:01:43]}  Kc5 {[%clk 0:01:17]} 26. Rd2 {[%clk 0:01:43]}  Ra4 {[%clk 0:01:14]} 27. Ra1 {[%clk 0:01:39]}  Rab4 {[%clk 0:01:10]} 28. Rad1 {[%clk 0:01:37]}  Ra4 {[%clk 0:01:07]} 29. Ra1 {[%clk 0:01:28]}  Rab4 {[%clk 0:00:59]} 30. e3 {[%clk 0:01:26]}  g5 {[%clk 0:00:54]} 31. h4 {[%clk 0:01:27]}  h6 {[%clk 0:00:47]} 32. hxg5 {[%clk 0:01:20]}  hxg5 {[%clk 0:00:47]} 33. g4 {[%clk 0:01:19]}  e5 {[%clk 0:00:48]} 34. Be4 {[%clk 0:01:15]}  Bc8 {[%clk 0:00:48]} 35. Rad1 {[%clk 0:01:15]}  Be6 {[%clk 0:00:48]} 36. Rh1 {[%clk 0:01:12]}  Ra4 {[%clk 0:00:47]} 37. Bb1 {[%clk 0:01:09]}  Rab4 {[%clk 0:00:47]} 38. Rh5 {[%clk 0:01:08]}  f6 {[%clk 0:00:41]} 39. f3 {[%clk 0:01:04]}  e4 {[%clk 0:00:39]} 40. fxe4 {[%clk 0:01:04]}  Bxg4 {[%clk 0:00:39]} 41. Rh6 {[%clk 0:00:56]}  Bf3 {[%clk 0:00:38]} 42. Rxf6 {[%clk 0:00:56]}  Bg4 {[%clk 0:00:36]} 43. Rg6 {[%clk 0:00:54]}  Bc8 {[%clk 0:00:12]} 44. Rxg5+ {[%clk 0:00:47]} 1-0


[Site "https://www.chess.com"]

[Event "Titled Tuesday Blitz January 10 Late 2023"]
[White "Jodorcovsky Werjivker, Paulo"]
[Black "Ansh M Shah"]
[WhiteFideId "3700305"]
[BlackFideId "25033379"]
[WhiteElo "2182"]
[BlackElo "2171"]
[Result "0-1"]
[Round "05"]
[TimeControl "180+2"]
[Date "2023.01.10"]
[WhiteClock "0:00:07"]
[BlackClock "0:00:27"]

1. e4 {[%clk 0:00:00]}  c6 {[%clk 0:00:00]} 2. d4 {[%clk 0:02:56]}  d5 {[%clk 0:02:59]} 3. exd5 {[%clk 0:02:55]}  cxd5 {[%clk 0:03:00]} 4. Bd3 {[%clk 0:02:56]}  Nc6 {[%clk 0:03:01]} 5. c3 {[%clk 0:02:57]}  Qc7 {[%clk 0:03:01]} 6. h3 {[%clk 0:02:57]}  Nf6 {[%clk 0:03:01]} 7. Ne2 {[%clk 0:02:56]}  e5 {[%clk 0:03:00]} 8. dxe5 {[%clk 0:02:56]}  Nxe5 {[%clk 0:03:00]} 9. Bb5+ {[%clk 0:02:55]}  Bd7 {[%clk 0:03:01]} 10. Bxd7+ {[%clk 0:02:38]}  Qxd7 {[%clk 0:03:00]} 11. Bf4 {[%clk 0:02:32]}  Bd6 {[%clk 0:02:59]} 12. O-O {[%clk 0:02:32]}  O-O {[%clk 0:02:58]} 13. Nd2 {[%clk 0:02:27]}  Rad8 {[%clk 0:02:53]} 14. Nd4 {[%clk 0:02:27]}  Rfe8 {[%clk 0:02:49]} 15. Bg3 {[%clk 0:02:22]}  Ne4 {[%clk 0:02:49]} 16. Bxe5 {[%clk 0:02:17]}  Bxe5 {[%clk 0:02:42]} 17. N2f3 {[%clk 0:02:11]}  Bf6 {[%clk 0:02:38]} 18. Re1 {[%clk 0:02:00]}  g6 {[%clk 0:02:31]} 19. Qb3 {[%clk 0:01:55]}  a6 {[%clk 0:02:28]} 20. Rad1 {[%clk 0:01:53]}  Qc7 {[%clk 0:02:18]} 21. Nc2 {[%clk 0:01:47]}  Qc5 {[%clk 0:02:02]} 22. Ne3 {[%clk 0:01:29]}  Ng5 {[%clk 0:01:49]} 23. Nd4 {[%clk 0:00:58]}  Kg7 {[%clk 0:01:20]} 24. Kf1 {[%clk 0:00:19]}  Ne6 {[%clk 0:01:03]} 25. Nf3 {[%clk 0:00:14]}  d4 {[%clk 0:01:01]} 26. cxd4 {[%clk 0:00:14]}  Nxd4 {[%clk 0:00:58]} 27. Nxd4 {[%clk 0:00:14]}  Bxd4 {[%clk 0:00:59]} 28. Ng4 {[%clk 0:00:14]}  h5 {[%clk 0:01:00]} 29. Ne3 {[%clk 0:00:11]}  Bxe3 {[%clk 0:00:55]} 30. Rxd8 {[%clk 0:00:10]}  Rxd8 {[%clk 0:00:51]} 31. Qxe3 {[%clk 0:00:11]}  Qc4+ {[%clk 0:00:43]} 32. Qe2 {[%clk 0:00:12]}  Qxa2 {[%clk 0:00:31]} 33. Qe5+ {[%clk 0:00:10]}  Kg8 {[%clk 0:00:30]} 34. Qc7 {[%clk 0:00:10]}  Qd5 {[%clk 0:00:30]} 35. g3 {[%clk 0:00:10]}  Qh1+ {[%clk 0:00:28]} 36. Ke2 {[%clk 0:00:06]}  Re8+ {[%clk 0:00:26]} 37. Kd3 {[%clk 0:00:07]}  Qxe1 {[%clk 0:00:27]} 0-1


[Site "https://www.chess.com"]